fUST/lending_fUST_20250717
["ID","MTS","AMOUNT","RATE_DAILY","PERIOD"]
[372613797,1752706242859,-460.0,0.00020378,2]
[372613799,1752706242868,-460.0,0.00020378,2]
[372613801,1752706242877,-620.34,0.00020378,2]
[372613803,1752706242887,-460.0,0.00020378,2]
[372613805,1752706242896,-9304.28541535,0.00020382,3]
[372613807,1752706242906,-214.40824756,0.00020382,3]
[372613809,1752706242916,-337.0,0.00020416,2]
[372613811,1752706242925,-420.0,0.00020416,2]
[372613813,1752706242935,-2000.0,0.00020416,2]
[372613815,1752706242945,-2000.0,0.00020416,2]
[372613817,1752706242955,-1012.57935487,0.00020471,2]
[372613819,1752706242964,-230.8109288,0.00020495,2]
[372613821,1752706242974,-160.0,0.00020495,2]
[372613824,1752706242984,-838.99048831,0.00020495,2]
[372613826,1752706242994,-12605.49131908,0.00020495,2]
[372613828,1752706243003,-215.5496034,0.00020496,2]
[372613831,1752706243012,-214.40824756,0.00020496,2]
[372613833,1752706243022,-525.58295679,0.00020496,2]
[372613836,1752706243031,-160.0,0.00020496,2]
[372613838,1752706243041,-160.0,0.00020496,2]
[372613840,1752706243051,-160.0,0.00020496,2]
[372613842,1752706243061,-160.0,0.00020496,2]
[372613844,1752706243070,-160.0,0.00020496,2]
[372613846,1752706243080,-160.0,0.00020496,2]
[372613848,1752706243090,-160.0,0.00020497,2]
[372613850,1752706243100,-160.0,0.00020497,2]
[372613852,1752706243109,-476.07036022,0.00020497,2]
[372613854,1752706243119,-1680.0,0.00020515,2]
[372613856,1752706243128,-848.83255712,0.00020521,3]
[372613858,1752706243138,-179.91004498,0.00020533,2]
[372613860,1752706243147,-500.0,0.00020547,2]
[372613862,1752706243157,-500.0,0.00020547,2]
[372613864,1752706243167,-500.0,0.00020547,2]
[372613866,1752706243176,-500.0,0.00020547,2]
[372613868,1752706243186,-500.0,0.00020547,2]
[372613870,1752706243198,-500.0,0.00020547,2]
[372613872,1752706243207,-500.0,0.00020547,2]
[372613874,1752706243217,-500.0,0.00020645,2]
[372613876,1752706243226,-460.0,0.00020645,2]
[372613878,1752706243238,-460.0,0.00020646,2]
[372613880,1752706243248,-839.01,0.00020646,2]
[372613882,1752706243258,-460.0,0.00020646,2]
[372613883,1752706243267,-460.0,0.00020646,2]
[372613885,1752706243276,-460.0,0.00020646,2]
[372613888,1752706243286,-460.0,0.00020647,2]
[372613889,1752706243296,-670.56,0.00020648,2]
[372613891,1752706243306,-460.0,0.00020649,2]
[372613893,1752706243317,-460.0,0.00020649,2]
[372613895,1752706243326,-460.0,0.00020649,2]
[372613897,1752706243336,-1152.93,0.0002065,2]
[372613899,1752706243345,-460.0,0.0002065,2]
[372613901,1752706243355,-460.0,0.00020652,2]
[372613904,1752706243364,-460.0,0.00020652,2]
[372613906,1752706243373,-620.34,0.00020652,2]
[372613908,1752706243384,-460.0,0.00020652,2]
[372613910,1752706243393,-736.77192659,0.00020677,2]
[372613912,1752706243403,-848.83255712,0.00020728,3]
[372613914,1752706243412,-350.02,0.00020745,3]
[372613916,1752706243422,-700.02,0.00020787,3]
[372613918,1752706243431,-260.0,0.00020798,2]
[372613920,1752706243441,-5408.38126016,0.00020838,2]
[372613922,1752706243452,-332.14,0.00020917,3]
[372613924,1752706243461,-500.0,0.00020919,2]
[372613926,1752706243470,-460.0,0.00020919,2]
[372613928,1752706243479,-460.0,0.0002092,2]
[372613930,1752706243489,-839.01,0.0002092,2]
[372613932,1752706243498,-460.0,0.0002092,2]
[372613934,1752706243508,-460.0,0.0002092,2]
[372613936,1752706243519,-460.0,0.0002092,2]
[372613938,1752706243528,-405.11127811,0.00020921,2]
[372613940,1752706243539,-670.56,0.00020922,2]
[372613943,1752706243559,-460.0,0.00020923,2]
[372613944,1752706243574,-460.0,0.00020923,2]
[372613947,1752706243584,-1152.93,0.00020924,2]
[372613948,1752706243594,-460.0,0.00020924,2]
[372613950,1752706243604,-460.0,0.00020926,2]
[372613952,1752706243613,-460.0,0.00020926,2]
[372613954,1752706243623,-620.34,0.00020926,2]
[372613956,1752706243632,-460.0,0.00020926,2]
[372613958,1752706243641,-848.83255712,0.00020934,4]
[372613961,1752706243651,-1328.52,0.00020938,3]
[372613963,1752706243660,-664.26,0.00020938,3]
[372613964,1752706243670,-2500.0,0.00020964,2]
[372613966,1752706243680,-2500.0,0.00020964,2]
[372613968,1752706243690,-3426.39592199,0.0002099,2]
[372613970,1752706243701,-1862.017,0.00021033,2]
[372613972,1752706243711,-178.331,0.00021033,2]
[372613974,1752706243721,-1000.0,0.00021034,2]
[372613976,1752706243731,-1505.97020749,0.00021041,2]
[372613978,1752706243740,-151.0,0.0002112,2]
[372613980,1752706243750,-151.0,0.0002112,2]
[372613982,1752706243759,-207.4,0.0002112,2]
[372613984,1752706243768,-151.0,0.0002112,2]
[372613986,1752706243778,-151.0,0.0002112,2]
[372613988,1752706243788,-3801.642,0.0002112,2]
[372613990,1752706243797,-151.0,0.0002112,2]
[372613992,1752706243807,-151.0,0.0002112,2]
[372613994,1752706243816,-151.0,0.0002112,2]
[372613996,1752706243825,-151.0,0.0002112,2]
[372613998,1752706243834,-151.0,0.0002112,2]
[372614000,1752706243843,-151.0,0.0002112,2]
[372614002,1752706243852,-151.0,0.0002112,2]
[372614004,1752706243862,-151.0,0.0002112,2]
[372614006,1752706243871,-166.46846412,0.0002112,2]
[372614008,1752706243881,-151.0,0.0002112,2]
[372614010,1752706243891,-151.0,0.0002112,2]
[372614012,1752706243900,-151.0,0.0002112,2]
[372614014,1752706243909,-151.0,0.0002112,2]
[372614016,1752706243918,-151.0,0.0002112,2]
[372614018,1752706243928,-151.0,0.0002112,2]
[372614020,1752706243937,-151.0,0.0002112,2]
[372614022,1752706243948,-151.0,0.0002112,2]
[372614024,1752706243958,-151.0,0.0002112,2]
[372614026,1752706243967,-151.0,0.0002112,2]
[372614028,1752706243976,-153.7637497,0.0002112,2]
[372614029,1752706243986,-151.0,0.0002112,2]
[372614031,1752706243995,-151.0,0.0002112,2]
[372614033,1752706244005,-151.0,0.0002112,2]
[372614035,1752706244015,-151.0,0.0002112,2]
[372614037,1752706244025,-151.0,0.0002112,2]
[372614040,1752706244035,-151.0,0.0002112,2]
[372614042,1752706244046,-175.8563729,0.0002112,2]
[372614044,1752706244055,-500.0,0.0002112,2]
[372614046,1752706244066,-151.0,0.0002112,2]
[372614048,1752706244076,-500.0,0.0002112,2]
[372614050,1752706244087,-151.0,0.0002112,2]
[372614052,1752706244096,-500.0,0.0002112,2]
[372614054,1752706244106,-151.0,0.0002112,2]
[372614055,1752706244115,-612.74679689,0.0002112,2]
[372614057,1752706244125,-25000.0,0.0002112,2]
[372614059,1752706244134,-21694.64805828,0.0002112,2]
[372614061,1752706244144,-848.83255712,0.00021141,4]
[372614063,1752706244153,-500.0,0.00021173,2]
[372614065,1752706244163,-500.97108494,0.00021173,2]
[372614067,1752706244173,-500.0,0.00021173,2]
[372614069,1752706244182,-500.0,0.00021173,2]
[372614071,1752706244193,-500.0,0.00021173,2]
[372614073,1752706244203,-500.0,0.00021173,2]
[372614075,1752706244212,-500.0,0.00021173,2]
[372614077,1752706244222,-158.00241673,0.00021173,2]
[372614079,1752706244232,-500.0,0.00021173,2]
[372614081,1752706244245,-500.0,0.00021173,2]
[372614083,1752706244255,-500.0,0.00021173,2]
[372614085,1752706244266,-500.0,0.00021173,2]
[372614087,1752706244275,-500.0,0.00021173,2]
[372614089,1752706244286,-500.0,0.00021173,2]
[372614091,1752706244295,-348.19794595,0.00021173,2]
[372614093,1752706244305,-500.0,0.00021173,2]
[372614095,1752706244315,-500.0,0.00021173,2]
[372614097,1752706244325,-500.0,0.00021173,2]
[372614099,1752706244334,-500.0,0.00021173,2]
[372614101,1752706244343,-500.0,0.00021173,2]
[372614103,1752706244353,-500.0,0.00021173,2]
[372614105,1752706244364,-500.0,0.00021173,2]
[372614107,1752706244374,-500.0,0.00021173,2]
[372614109,1752706244384,-500.0,0.00021173,2]
[372614111,1752706244394,-500.0,0.00021173,2]
[372614113,1752706244404,-500.0,0.00021173,2]
[372614115,1752706244413,-500.0,0.00021173,2]
[372614117,1752706244423,-501.83571431,0.00021173,2]
[372614119,1752706244432,-584.00273374,0.00021173,2]
[372614121,1752706244441,-503.04303697,0.00021173,2]
[372614123,1752706244453,-500.0,0.00021173,2]
[372614125,1752706244462,-500.0,0.00021173,2]
[372614127,1752706244471,-500.0,0.00021173,2]
[372614128,1752706244481,-500.0,0.00021173,2]
[372614130,1752706244490,-500.0,0.00021173,2]
[372614131,1752706244499,-500.0,0.00021173,2]
[372614132,1752706244508,-500.0,0.00021173,2]
[372614133,1752706244517,-2657.04,0.00021186,3]
[372614134,1752706244527,-500.0,0.00021193,2]
[372614135,1752706244536,-460.0,0.00021193,2]
[372614136,1752706244546,-460.0,0.00021194,2]
[372614137,1752706244556,-839.01,0.00021194,2]
[372614138,1752706244565,-460.0,0.00021194,2]
[372614139,1752706244574,-460.0,0.00021194,2]
[372614140,1752706244583,-460.0,0.00021194,2]
[372614142,1752706244593,-670.56,0.00021196,2]
[372614144,1752706244603,-460.0,0.00021197,2]
[372614146,1752706244612,-460.0,0.00021197,2]
[372614148,1752706244621,-1152.93,0.00021198,2]
[372614150,1752706244631,-460.0,0.00021198,2]
[372614152,1752706244640,-460.0,0.000212,2]
[372614154,1752706244650,-460.0,0.000212,2]
[372614156,1752706244660,-620.34,0.000212,2]
[372614158,1752706244669,-460.0,0.000212,2]
[372614160,1752706244679,-360.0,0.00021346,2]
[372614162,1752706244688,-5000.0,0.00021346,2]
[372614164,1752706244701,-848.83255712,0.00021348,5]
[372614166,1752706244712,-500.0,0.00021467,2]
[372614169,1752706244721,-460.0,0.00021467,2]
[372614170,1752706244731,-460.0,0.00021468,2]
[372614172,1752706244742,-839.01,0.00021468,2]
[372614175,1752706244752,-460.0,0.00021468,2]
[372614177,1752706244763,-460.0,0.00021468,2]
[372614178,1752706244775,-460.0,0.00021468,2]
[372614181,1752706244786,-670.56,0.0002147,2]
[372614183,1752706244796,-329.64,0.00021471,2]
[372614185,1752706244806,-1152.93,0.00021472,2]
[372614187,1752706244815,-460.0,0.00021472,2]
[372614189,1752706244824,-344.7,0.00021474,2]
[372614191,1752706244834,-460.0,0.00021474,2]
[372614193,1752706244843,-620.34,0.00021474,2]
[372614195,1752706244852,-460.0,0.00021474,2]
[372614196,1752706244869,-12520.75269904,0.000215,2]
[372614199,1752706244878,-342.77802894,0.00021512,2]
[372614201,1752706244888,-312.28533594,0.00021512,2]
[372614203,1752706244897,-848.83255712,0.00021555,5]
[372614205,1752706244907,-736.77192659,0.00021702,2]
[372614207,1752706244917,-500.0,0.00021721,2]
[372614209,1752706244926,-1000.0,0.00021721,2]
[372614211,1752706244936,-500.0,0.00021721,2]
[372614213,1752706244946,-851.93703583,0.00021721,2]
[372614215,1752706244955,-691.2150118,0.00021721,2]
[372614217,1752706244965,-1000.0,0.00021721,2]
[372614219,1752706244974,-1000.0,0.00021721,2]
[372614220,1752706244983,-1010.91423198,0.00021721,2]
[372614223,1752706244994,-500.0,0.00021721,2]
[372614224,1752706245005,-1000.0,0.00021721,2]
[372614227,1752706245015,-849.79101408,0.00021721,2]
[372614228,1752706245024,-298.93991668,0.00021721,2]
[372614230,1752706245034,-500.0,0.00021721,2]
[372614232,1752706245043,-1000.0,0.00021721,2]
[372614234,1752706245052,-500.0,0.00021721,2]
[372614237,1752706245063,-500.95203779,0.00021721,2]
[372614239,1752706245074,-1000.0,0.00021721,2]
[372614240,1752706245084,-1000.0,0.00021721,2]
[372614255,1752706245209,-1000.77879044,0.00021721,2]
[372614257,1752706245219,-1000.0,0.00021721,2]
[372614259,1752706245229,-500.0,0.00021721,2]
[372614261,1752706245243,-1000.0,0.00021721,2]
[372614263,1752706245252,-1000.0,0.00021721,2]
[372614265,1752706245261,-500.0,0.00021741,2]
[372614267,1752706245270,-460.0,0.00021741,2]
[372614269,1752706245280,-460.0,0.00021742,2]
[372614271,1752706245291,-839.01,0.00021742,2]
[372614273,1752706245301,-460.0,0.00021742,2]
[372614275,1752706245312,-460.0,0.00021742,2]
[372614277,1752706245322,-460.0,0.00021742,2]
[372614279,1752706245332,-670.56,0.00021744,2]
[372614281,1752706245342,-1152.93,0.00021746,2]
[372614283,1752706245352,-242.48,0.00021746,2]
[372614285,1752706245362,-460.0,0.00021748,2]
[372614287,1752706245371,-620.34,0.00021748,2]
[372614289,1752706245381,-460.0,0.00021748,2]
[372614291,1752706245391,-848.83255712,0.00021762,5]
[372614293,1752706245400,-460.0,0.00021894,2]
[372614295,1752706245409,-114424.95216023,0.00021916,2]
[372614297,1752706245419,-500.0,0.00021917,2]
[372614299,1752706245428,-500.0,0.00021917,2]
[372614301,1752706245438,-500.0,0.00021917,2]
[372614303,1752706245449,-500.0,0.00021917,2]
[372614305,1752706245458,-500.0,0.00021917,2]
[372614307,1752706245468,-500.0,0.00021917,2]
[372614309,1752706245477,-536.59,0.00021917,2]
[372614311,1752706245486,-341.25,0.00021951,2]
[372614313,1752706245499,-848.83255712,0.00021969,6]
[372614316,1752706245509,-500.0,0.00021973,2]
[372614317,1752706245518,-500.0,0.00021973,2]
[372614319,1752706245527,-500.0,0.00021973,2]
[372614321,1752706245537,-570.98341117,0.00021973,2]
[372614323,1752706245547,-150.0,0.00021973,2]
[372614325,1752706245557,-150.0,0.00021973,2]
[372614327,1752706245567,-1505.97020745,0.00021981,2]
[372614329,1752706245577,-165.0,0.00022,2]
[372614331,1752706245586,-1499.73,0.00022,7]
[372614333,1752706245595,-75218.82571281,0.00022,2]
[372614335,1752706245605,-352.61950143,0.00022,2]
[372614337,1752706245614,-54948.53497857,0.00022,2]
[372614339,1752706245625,-340.78315669,0.00022,14]
[372614341,1752706245634,-2498.07,0.00022,7]
[372614343,1752706245644,-14394.6,0.00022,7]
[372614345,1752706245654,-214.40824756,0.00022,7]
[372614347,1752706245664,-500.0,0.00022015,2]
[372614349,1752706245674,-460.0,0.00022015,2]
[372614351,1752706245684,-460.0,0.00022016,2]
[372614353,1752706245696,-839.01,0.00022016,2]
[372614356,1752706245707,-460.0,0.00022016,2]
[372614357,1752706245716,-460.0,0.00022016,2]
[372614359,1752706245725,-460.0,0.00022016,2]
[372614361,1752706245735,-670.56,0.00022018,2]
[372614363,1752706245745,-1152.93,0.0002202,2]
[372614366,1752706245755,-460.0,0.00022022,2]
[372614368,1752706245764,-620.34,0.00022022,2]
[372614370,1752706245775,-460.0,0.00022022,2]
[372614371,1752706245784,-1000.0,0.0002213,2]
[372614374,1752706245794,-848.83255712,0.00022176,6]
[372614376,1752706245804,-151.0,0.000222,5]
[372614378,1752706245814,-587.0,0.00022259,2]
[372614379,1752706245824,-19208.30135738,0.00022265,2]
[372614381,1752706245835,-1503.64477649,0.00022268,2]
[372614383,1752706245844,-1000.0,0.00022268,2]
[372614385,1752706245854,-1326.47760376,0.00022268,2]
[372614400,1752706245972,-460.0,0.00018729,2]
[372614402,1752706245981,-460.0,0.0001873,2]
[372614404,1752706245991,-460.0,0.00019003,2]
[372614406,1752706246000,-460.0,0.00019004,2]
[372614408,1752706246010,-460.0,0.00019277,2]
[372614410,1752706246019,-460.0,0.00019278,2]
[372614412,1752706246029,-460.0,0.00019551,2]
[372614414,1752706246038,-460.0,0.00019552,2]
[372614416,1752706246048,-460.0,0.00019825,2]
[372614418,1752706246057,-460.0,0.00020099,2]
[372614420,1752706246067,-460.0,0.00020373,2]
[372614422,1752706246077,-460.0,0.00020647,2]
[372614424,1752706246087,-460.0,0.00020921,2]
[372614426,1752706246096,-460.0,0.00021195,2]
[372614428,1752706246106,-173.52239624,0.00022268,2]
[372614430,1752706246115,-500.0,0.00022268,2]
[372614432,1752706246126,-1500.0,0.00022268,2]
[372614434,1752706246136,-1500.0,0.00022268,2]
[372614436,1752706246145,-1120.06316809,0.00022268,2]
[372614438,1752706246155,-1000.0,0.00022273,2]
[372614440,1752706246164,-500.0,0.00022289,2]
[372614442,1752706246174,-460.0,0.00022289,2]
[372614444,1752706246184,-460.0,0.0002229,2]
[372614446,1752706246196,-839.01,0.0002229,2]
[372614448,1752706246206,-460.0,0.0002229,2]
[372614450,1752706246215,-460.0,0.0002229,2]
[372614452,1752706246225,-460.0,0.0002229,2]
[372614454,1752706246237,-670.56,0.00022292,2]
[372614456,1752706246248,-1152.93,0.00022294,2]
[372614458,1752706246257,-460.0,0.00022296,2]
[372614460,1752706246267,-620.34,0.00022296,2]
[372614462,1752706246277,-460.0,0.00022296,2]
[372614464,1752706246287,-656.64663739,0.000223,2]
[372614466,1752706246297,-471.88357901,0.00022373,2]
[372614468,1752706246307,-525.44090785,0.00022373,2]
[372614470,1752706246318,-500.0,0.00022373,2]
[372614472,1752706246330,-848.83255712,0.00022383,7]
[372614474,1752706246339,-52950.13438887,0.000224,2]
[372614476,1752706246349,-24360.95,0.000224,2]
[372614478,1752706246358,-560.0,0.00022442,2]
[372614480,1752706246368,-250.0,0.00022473,2]
[372614482,1752706246378,-2351.0,0.00022477,2]
[372614484,1752706246387,-215.0738,0.00022489,2]
[372614486,1752706246396,-153363.00119759,0.0002249,7]
[372614488,1752706246406,-1000.0,0.00022521,2]
[372614490,1752706246416,-1000.0,0.00022521,2]
[372614492,1752706246426,-1000.0,0.00022521,2]
[372614494,1752706246436,-300.0,0.00022521,2]
[372614496,1752706246447,-278.55719364,0.00022521,2]
[372614498,1752706246456,-500.0,0.00022563,2]
[372614500,1752706246466,-460.0,0.00022563,2]
[372614502,1752706246478,-460.0,0.00022564,2]
[372614504,1752706246488,-839.01,0.00022564,2]
[372614506,1752706246497,-460.0,0.00022564,2]
[372614508,1752706246508,-460.0,0.00022564,2]
[372614510,1752706246517,-460.0,0.00022564,2]
[372614512,1752706246527,-670.56,0.00022566,2]
[372614514,1752706246539,-1152.93,0.00022568,2]
[372614516,1752706246549,-460.0,0.0002257,2]
[372614518,1752706246558,-620.34,0.0002257,2]
[372614520,1752706246568,-460.0,0.0002257,2]
[372614522,1752706246578,-848.83255712,0.0002259,7]
[372614524,1752706246587,-736.77192659,0.00022726,2]
[372614526,1752706246597,-248.82013214,0.00022747,2]
[372614528,1752706246607,-275.1108453,0.00022796,2]
[372614530,1752706246617,-177.3751135,0.00022796,2]
[372614532,1752706246627,-159.7314836,0.00022796,2]
[372614534,1752706246636,-848.83255712,0.00022797,7]
[372614536,1752706246647,-2000.0,0.00022816,2]
[372614538,1752706246656,-2001.23694856,0.00022816,2]
[372614540,1752706246666,-500.0,0.00022836,2]
[372614542,1752706246675,-460.0,0.00022836,2]
[372614544,1752706246685,-460.0,0.00022838,2]
[372614546,1752706246695,-839.01,0.00022838,2]
[372614548,1752706246705,-460.0,0.00022838,2]
[372614550,1752706246714,-460.0,0.00022838,2]
[372614552,1752706246724,-507.60471916,0.00022838,2]
[372614554,1752706246734,-670.56,0.0002284,2]
[372614556,1752706246744,-1152.93,0.00022842,2]
[372614558,1752706246753,-460.0,0.00022844,2]
[372614560,1752706246763,-620.34,0.00022844,2]
[372614562,1752706246772,-579.02,0.00022844,2]
[372614564,1752706246781,-1505.97020745,0.00022921,2]
[372614566,1752706246791,-1000.0,0.00022921,2]
[372614568,1752706246800,-660.0,0.0002299,2]
[372614570,1752706246809,-499.5733025,0.00023,3]
[372614572,1752706246819,-4169.81197384,0.00023,10]
[372614574,1752706246828,-1606.15,0.00023,2]
[372614576,1752706246838,-215.5496034,0.00023,3]
[372614578,1752706246847,-230.8109288,0.00023,3]
[372614580,1752706246858,-525.58295679,0.00023,3]
[372614583,1752706246867,-848.83255712,0.00023003,8]
[372614585,1752706246877,-165.0,0.00023014,7]
[372614587,1752706246886,-1500.0,0.00023068,2]
[372614589,1752706246896,-1000.0,0.00023068,2]
[372614591,1752706246906,-1000.0,0.00023068,2]
[372614593,1752706246915,-450.0,0.00023068,2]
[372614595,1752706246925,-544.24531205,0.0002311,2]
[372614597,1752706246934,-566.35225906,0.0002311,2]
[372614599,1752706246943,-460.0,0.00023112,2]
[372614601,1752706246955,-839.01,0.00023112,2]
[372614603,1752706246964,-460.0,0.00023112,2]
[372614604,1752706246974,-448.56,0.00023112,2]
[372614607,1752706246983,-670.56,0.00023114,2]
[372614609,1752706246993,-1152.93,0.00023116,2]
[372614611,1752706247002,-278.46,0.00023118,2]
[372614613,1752706247012,-620.34,0.00023118,2]
[372614615,1752706247021,-2498.07,0.000232,7]
[372614617,1752706247031,-14394.6,0.000232,7]
[372614619,1752706247040,-151.0,0.000232,6]
[372614621,1752706247049,-848.83255712,0.0002321,8]
[372614622,1752706247059,-250.0,0.00023229,2]
[372614624,1752706247069,-5408.38126015,0.00023268,2]
[372614627,1752706247079,-6496.41969775,0.0002328,2]
[372614628,1752706247088,-500.0,0.00023364,2]
[372614631,1752706247098,-460.0,0.00023386,2]
[372614633,1752706247108,-839.01,0.00023386,2]
[372614635,1752706247117,-460.0,0.00023386,2]
[372614637,1752706247126,-670.56,0.00023388,2]
[372614638,1752706247136,-1152.93,0.0002339,2]
[372614640,1752706247145,-620.34,0.00023392,2]
[372614642,1752706247161,-848.83255712,0.00023417,9]
[372614644,1752706247173,-1150.2803425,0.00023452,2]
[372614646,1752706247182,-1503.27154105,0.00023468,2]
[372614648,1752706247192,-151.0,0.000235,10]
[372614650,1752706247204,-760.0,0.00023538,2]
[372614652,1752706247214,-2000.0,0.00023616,2]
[372614654,1752706247224,-159.7314836,0.00023618,2]
[372614657,1752706247234,-848.83255712,0.00023624,9]
[372614659,1752706247246,-460.0,0.00023659,2]
[372614661,1752706247256,-839.01,0.00023659,2]
[372614663,1752706247265,-460.0,0.00023659,2]
[372614665,1752706247275,-670.56,0.00023662,2]
[372614667,1752706247285,-1152.93,0.00023664,2]
[372614669,1752706247295,-620.34,0.00023666,2]
[372614671,1752706247304,-1499.73,0.000237,7]
[372614673,1752706247314,-736.77192659,0.00023751,2]
[372614675,1752706247323,-151.0,0.000238,5]
[372614677,1752706247332,-848.83255712,0.00023831,10]
[372614679,1752706247342,-223.0315306,0.00023858,2]
[372614681,1752706247351,-1505.97020745,0.0002386,2]
[372614683,1752706247361,-24360.95,0.000239,2]
[372614685,1752706247370,-2451.12435186,0.000239,2]
[372614687,1752706247380,-460.0,0.00023933,2]
[372614689,1752706247389,-839.01,0.00023933,2]
[372614691,1752706247399,-460.0,0.00023933,2]
[372614693,1752706247408,-670.56,0.00023936,2]
[372614695,1752706247418,-1152.93,0.00023938,2]
[372614697,1752706247429,-620.34,0.0002394,2]
[372614699,1752706247438,-331.4233043,0.00023965,2]
[372614701,1752706247450,-848.83255712,0.00024038,10]
[372614703,1752706247459,-240.0,0.00024086,2]
[372614705,1752706247468,-647.0,0.00024087,2]
[372614707,1752706247478,-2155.0,0.00024087,2]
[372614709,1752706247488,-407.0,0.00024087,2]
[372614711,1752706247498,-413.405,0.00024087,2]
[372614713,1752706247511,-968.0,0.00024087,2]
[372614716,1752706247521,-150.0,0.00024087,2]
[372614718,1752706247530,-151.0,0.000241,9]
[372614720,1752706247540,-954.97942182,0.00024164,2]
[372614722,1752706247550,-151.0,0.000242,6]
[372614724,1752706247559,-460.0,0.00024207,2]
[372614726,1752706247569,-839.01,0.00024207,2]
[372614728,1752706247578,-460.0,0.00024207,2]
[372614730,1752706247587,-670.56,0.0002421,2]
[372614732,1752706247597,-1152.93,0.00024212,2]
[372614734,1752706247606,-620.34,0.00024214,2]
[372614736,1752706247615,-848.83255712,0.00024245,10]
[372614738,1752706247625,-823.0,0.00024269,2]
[372614740,1752706247634,-151.0,0.000243,7]
[372614742,1752706247644,-1000.0,0.00024322,2]
[372614744,1752706247653,-1014.76440396,0.0002444,2]
[372614746,1752706247663,-4054.99855824,0.0002444,2]
[372614748,1752706247672,-848.83255712,0.00024452,11]
[372614750,1752706247682,-460.0,0.00024481,2]
[372614752,1752706247692,-839.01,0.00024481,2]
[372614754,1752706247703,-460.0,0.00024481,2]
[372614756,1752706247713,-670.56,0.00024484,2]
[372614758,1752706247723,-1152.93,0.00024486,2]
[372614760,1752706247732,-620.34,0.00024488,2]
[372614762,1752706247741,-319.4629672,0.00024525,2]
[372614764,1752706247750,-576.8651031,0.00024564,2]
[372614766,1752706247760,-576.8651031,0.00024564,2]
[372614768,1752706247770,-576.8651031,0.00024564,2]
[372614770,1752706247779,-576.8651031,0.00024564,2]
[372614772,1752706247788,-576.4815071,0.00024564,2]
[372614774,1752706247798,-2498.07,0.000246,7]
[372614776,1752706247807,-14394.6,0.000246,7]
[372614778,1752706247817,-151.0,0.000246,7]
[372614780,1752706247826,-1362.0,0.00024626,2]
[372614782,1752706247835,-848.83255712,0.00024659,11]
[372614784,1752706247845,-233.48115379,0.00024755,2]
[372614786,1752706247855,-839.01,0.00024755,2]
[372614788,1752706247864,-341.65,0.00024755,2]
[372614790,1752706247873,-670.56,0.00024758,2]
[372614792,1752706247882,-1152.93,0.0002476,2]
[372614794,1752706247892,-620.34,0.00024762,2]
[372614797,1752706247901,-736.77192659,0.00024776,2]
[372614799,1752706247911,-2849.57228149,0.000248,2]
[372614801,1752706247922,-151.0,0.000248,8]
[372614803,1752706247931,-68784.66590523,0.000248,2]
[372614805,1752706247947,-541.64666871,0.000248,2]
[372614807,1752706247958,-21380.90864384,0.000248,2]
[372614809,1752706247970,-462.17922788,0.000248,2]
[372616345,1752706401282,304.257927,0.00013699,2]
[372616348,1752706698473,1282.4241263,0.00017702,2]
[372616349,1752706978459,24900.0,0.00017652,2]